fUST/lending_fUST_20251213
["ID","MTS","AMOUNT","RATE_DAILY","PERIOD"]
[398406345,1765617065865,-2873.75,0.00027945,3]
[398406346,1765617065875,-500.0,0.00027945,3]
[398406347,1765617065884,-500.0,0.00027945,3]
[398406348,1765617065895,-500.0,0.00027945,3]
[398406349,1765617065906,-500.0,0.00027945,3]
[398406350,1765617065918,-500.0,0.00027945,3]
[398406351,1765617065928,-500.0,0.00027945,3]
[398406352,1765617065938,-500.0,0.00027945,3]
[398406353,1765617065947,-500.0,0.00027945,3]
[398406354,1765617065959,-2079.15,0.00027945,3]
[398406355,1765617065968,-500.0,0.00027945,3]
[398406356,1765617065978,-1274.09,0.00027945,3]
[398406357,1765617065987,-955.7,0.00027945,3]
[398406358,1765617065996,-500.0,0.00027945,3]
[398406359,1765617066006,-1232.72,0.00027945,3]
[398406360,1765617066015,-506.938784,0.00027945,3]
[398406361,1765617066024,-500.0,0.00027945,3]
[398406362,1765617066033,-500.0,0.00027945,3]
[398406363,1765617066043,-500.0,0.00027945,3]
[398406364,1765617066052,-600.87235908,0.00027945,3]
[398406365,1765617066062,-476.40722384,0.00027945,3]
[398406366,1765617066071,-501.94177509,0.00027945,3]
[398406367,1765617066080,-500.45490984,0.00027945,3]
[398406368,1765617066090,-363.73164813,0.00027945,3]
[398406369,1765617066100,-500.0,0.00027945,3]
[398406370,1765617066226,-500.0,0.00027945,3]
[398406371,1765617066235,-1057.28,0.00027945,3]
[398406372,1765617066245,-500.0,0.00027945,2]
[398406373,1765617066254,-500.0,0.00027945,3]
[398406374,1765617066263,-500.0,0.00027945,3]
[398406375,1765617066272,-500.0,0.00027945,3]
[398406376,1765617066282,-898.31,0.00027945,3]
[398406377,1765617066291,-500.0,0.00027945,3]
[398406378,1765617066300,-772.85,0.00027945,3]
[398406379,1765617066310,-500.0,0.00027945,3]
[398406380,1765617066319,-500.0,0.00027945,3]
[398406381,1765617066328,-819.41,0.00027945,3]
[398406382,1765617066337,-502.42545573,0.00027945,3]
[398406383,1765617066347,-788.38,0.00027945,3]
[398406384,1765617066356,-500.0,0.00027945,3]
[398406385,1765617066367,-500.0,0.00027945,3]
[398406386,1765617066378,-764.33,0.00027945,3]
[398406387,1765617066388,-748.25,0.00027945,3]
[398406388,1765617066399,-836.29,0.00027945,3]
[398406389,1765617066411,-500.0,0.00027945,3]
[398406390,1765617066420,-500.0,0.00027945,3]
[398406391,1765617066429,-500.0,0.00027945,3]
[398406392,1765617066439,-500.0,0.00027945,3]
[398406393,1765617066448,-500.0,0.00027945,3]
[398406394,1765617066457,-500.0,0.00027945,3]
[398406395,1765617066466,-500.0,0.00027945,3]
[398406396,1765617066476,-500.0,0.00027945,3]
[398406397,1765617066486,-1629.1,0.00027945,3]
[398406398,1765617066497,-500.0,0.00027945,3]
[398406399,1765617066508,-1136.76,0.00027945,3]
[398406400,1765617066519,-500.0,0.00027945,3]
[398406401,1765617066529,-500.0,0.00027945,3]
[398406402,1765617066539,-500.0,0.00027945,3]
[398406403,1765617066549,-500.0,0.00027945,3]
[398406404,1765617066560,-500.0,0.00027945,3]
[398406405,1765617066569,-500.0,0.00027945,3]
[398406406,1765617066578,-500.0,0.00027945,3]
[398406407,1765617066588,-500.0,0.00027945,3]
[398406408,1765617066598,-2503.99,0.00027945,3]
[398406409,1765617066609,-500.0,0.00027945,3]
[398406410,1765617066621,-500.0,0.00027945,3]
[398406411,1765617066631,-1038.24,0.00027945,3]
[398406412,1765617066642,-842.87,0.00027945,3]
[398406413,1765617066651,-1132.01,0.00027945,3]
[398406414,1765617066661,-723.84,0.00027945,3]
[398406415,1765617066671,-500.0,0.00027945,3]
[398406416,1765617066681,-500.0,0.00027945,3]
[398406417,1765617066691,-500.0,0.00027945,3]
[398406418,1765617066700,-1106.65,0.00027945,3]
[398406419,1765617066710,-512.36,0.00027945,3]
[398406420,1765617066720,-1634.87,0.00027945,3]
[398406421,1765617066729,-500.0,0.00027945,3]
[398406422,1765617066739,-500.0,0.00027945,3]
[398406423,1765617066748,-802.8,0.00027945,3]
[398406424,1765617066758,-500.0,0.00027945,3]
[398406425,1765617066768,-1706.64,0.00027945,3]
[398406426,1765617066779,-1633.25,0.00027945,3]
[398406427,1765617066789,-687.9,0.00027945,3]
[398406428,1765617066798,-1178.32,0.00027945,3]
[398406429,1765617066808,-978.5,0.00027945,3]
[398406430,1765617066818,-500.0,0.00027945,3]
[398406431,1765617066827,-500.0,0.00027945,3]
[398406432,1765617066837,-500.0,0.00027945,3]
[398406433,1765617066846,-500.0,0.00027945,3]
[398406434,1765617066855,-500.0,0.00027945,3]
[398406435,1765617066865,-500.0,0.00027945,3]
[398406436,1765617066874,-2394.04,0.00027945,3]
[398406437,1765617066884,-2141.51,0.00027945,3]
[398406438,1765617066894,-500.0,0.00027945,3]
[398406439,1765617066903,-958.87,0.00027945,3]
[398406440,1765617066915,-2199.51,0.00027945,3]
[398406441,1765617066929,-1204.0,0.00027945,3]
[398406442,1765617066938,-1211.46,0.00027945,3]
[398406443,1765617066947,-500.0,0.00027945,3]
[398406444,1765617066960,-500.0,0.00027945,3]
[398406445,1765617066970,-500.0,0.00027945,3]
[398406446,1765617066979,-500.0,0.00027945,3]
[398406447,1765617066990,-500.0,0.00027945,3]
[398406448,1765617067000,-614.15550051,0.00027945,3]
[398406449,1765617067010,-500.0,0.00027945,3]
[398406450,1765617067019,-1484.03,0.00027945,3]
[398406451,1765617067029,-788.62,0.00027945,3]
[398406452,1765617067039,-541.28,0.00027945,3]
[398406453,1765617067050,-500.0,0.00027945,3]
[398406454,1765617067060,-1576.26,0.00027945,3]
[398406455,1765617067069,-500.0,0.00027945,3]
[398406456,1765617067079,-500.0,0.00027945,3]
[398406457,1765617067088,-500.0,0.00027945,3]
[398406458,1765617067098,-538.43,0.00027945,3]
[398406459,1765617067108,-500.0,0.00027945,3]
[398406460,1765617067118,-500.0,0.00027945,3]
[398406461,1765617067130,-500.0,0.00027945,3]
[398406462,1765617067150,-1753.96,0.00027945,3]
[398406463,1765617067170,-1893.62,0.00027945,3]
[398406464,1765617067180,-1559.0,0.00027945,3]
[398406465,1765617067190,-1715.03,0.00027945,3]
[398406466,1765617067199,-1728.44,0.00027945,3]
[398406467,1765617067209,-500.0,0.00027945,3]
[398406468,1765617067218,-500.0,0.00027945,3]
[398406469,1765617067227,-500.0,0.00027945,3]
[398406470,1765617067237,-500.0,0.00027945,3]
[398406471,1765617067249,-500.0,0.00027945,3]
[398406472,1765617067259,-523.59453287,0.00027945,3]
[398406473,1765617067269,-500.0,0.00027945,3]
[398406474,1765617067279,-500.0,0.00027945,3]
[398406475,1765617067289,-500.0,0.00027945,3]
[398406476,1765617067299,-500.0,0.00027945,3]
[398406477,1765617067309,-500.0,0.00027945,3]
[398406478,1765617067319,-500.0,0.00027945,3]
[398406479,1765617067330,-500.0,0.00027945,3]
[398406480,1765617067340,-2558.19,0.00027945,3]
[398406481,1765617067350,-500.0,0.00027945,3]
[398406482,1765617067360,-500.0,0.00027945,3]
[398406483,1765617067371,-2327.61,0.00027945,3]
[398406484,1765617067381,-656.92,0.00027945,3]
[398406485,1765617067391,-500.0,0.00027945,3]
[398406486,1765617067400,-1829.66,0.00027945,3]
[398406487,1765617067410,-500.0,0.00027945,3]
[398406488,1765617067420,-500.0,0.00027945,3]
[398406489,1765617067430,-500.0,0.00027945,3]
[398406490,1765617067440,-353.71268744,0.00027945,3]
[398406491,1765617067449,-500.0,0.00027945,3]
[398406492,1765617067458,-754.81,0.00027945,3]
[398406493,1765617067467,-500.0,0.00027945,3]
[398406494,1765617067477,-500.0,0.00027945,3]
[398406495,1765617067487,-500.0,0.00027945,3]
[398406496,1765617067498,-500.0,0.00027945,3]
[398406497,1765617067507,-1088.51,0.00027945,3]
[398406498,1765617067516,-500.0,0.00027945,3]
[398406499,1765617067526,-502.13033605,0.00027945,3]
[398406500,1765617067535,-500.0,0.00027945,3]
[398406501,1765617067543,-500.0,0.00027945,3]
[398406502,1765617067553,-2152.22,0.00027945,3]
[398406503,1765617067564,-1575.55,0.00027945,3]
[398406504,1765617067573,-1036.88,0.00027945,3]
[398406505,1765617067583,-500.0,0.00027945,3]
[398406506,1765617067592,-500.0,0.00027945,3]
[398406507,1765617067602,-500.0,0.00027945,3]
[398406508,1765617067612,-1210.75,0.00027945,3]
[398406509,1765617067622,-500.0,0.00027945,3]
[398406510,1765617067631,-500.0,0.00027945,3]
[398406511,1765617067641,-500.0,0.00027945,3]
[398406512,1765617067650,-500.0,0.00027945,3]
[398406513,1765617067660,-500.0,0.00027945,3]
[398406514,1765617067670,-505.01434311,0.00027945,3]
[398406515,1765617067679,-500.0,0.00027945,3]
[398406516,1765617067690,-502.8288968,0.00027945,3]
[398406517,1765617067700,-500.0,0.00027945,3]
[398406518,1765617067713,-500.0,0.00027945,3]
[398406519,1765617067723,-500.0,0.00027945,3]
[398406520,1765617067733,-500.0,0.00027945,3]
[398406521,1765617067743,-1371.34,0.00027945,3]
[398406522,1765617067752,-500.0,0.00027945,3]
[398406523,1765617067762,-1544.08,0.00027945,3]
[398406524,1765617067771,-500.0,0.00027945,3]
[398406525,1765617067781,-500.0,0.00027945,3]
[398406526,1765617067790,-500.0,0.00027945,3]
[398406527,1765617067800,-500.0,0.00027945,3]
[398406528,1765617067811,-964.54,0.00027945,3]
[398406529,1765617067820,-500.0,0.00027945,3]
[398406530,1765617067830,-311.10336639,0.00027945,3]
[398406531,1765617067839,-2211.52,0.00027945,3]
[398406532,1765617067850,-500.0,0.00027945,3]
[398406533,1765617067861,-183.82845994,0.00027945,3]
[398406534,1765617067871,-500.0,0.00027945,3]
[398406535,1765617067880,-715.72,0.00027945,3]
[398406536,1765617067890,-500.0,0.00027945,3]
[398406537,1765617067901,-500.0,0.00027945,3]
[398406538,1765617067911,-500.0,0.00027945,3]
[398406539,1765617067924,-500.0,0.00027945,3]
[398406540,1765617067934,-644.23,0.00027945,3]
[398406541,1765617067944,-500.0,0.00027945,3]
[398406542,1765617067955,-500.0,0.00027945,3]
[398406543,1765617067965,-500.0,0.00027945,3]
[398406544,1765617067974,-500.0,0.00027945,3]
[398406545,1765617067985,-1282.87,0.00027945,3]
[398406546,1765617067995,-562.72,0.00027945,3]
[398406547,1765617068004,-749.99,0.00027945,3]
[398406548,1765617068014,-1878.73,0.00027945,3]
[398406549,1765617068024,-500.0,0.00027945,3]
[398406550,1765617068144,-500.0,0.00027945,3]
[398406551,1765617068155,-911.18,0.00027945,3]
[398406552,1765617068165,-1507.87,0.00027945,3]
[398406553,1765617068174,-500.0,0.00027945,3]
[398406554,1765617068184,-690.11,0.00027945,3]
[398406555,1765617068194,-927.44,0.00027945,3]
[398406556,1765617068204,-500.0,0.00027945,3]
[398406557,1765617068214,-500.0,0.00027945,3]
[398406558,1765617068224,-1770.22,0.00027945,3]
[398406559,1765617068233,-750.26,0.00027945,3]
[398406560,1765617068243,-500.0,0.00027945,3]
[398406561,1765617068252,-500.0,0.00027945,3]
[398406562,1765617068262,-787.25,0.00027945,3]
[398406563,1765617068271,-863.65,0.00027945,3]
[398406564,1765617068280,-500.0,0.00027945,3]
[398406565,1765617068290,-500.0,0.00027945,3]
[398406566,1765617068302,-1287.94,0.00027945,3]
[398406567,1765617068311,-500.0,0.00027945,3]
[398406568,1765617068321,-2003.21,0.00027945,3]
[398406569,1765617068331,-500.0,0.00027945,2]
[398406570,1765617068340,-500.0,0.00027945,3]
[398406571,1765617068350,-500.0,0.00027945,3]
[398406572,1765617068360,-500.0,0.00027945,3]
[398406573,1765617068369,-757.47,0.00027945,3]
[398406574,1765617068379,-1230.98,0.00027945,3]
[398406575,1765617068389,-500.0,0.00027945,3]
[398406576,1765617068399,-500.0,0.00027945,3]
[398406577,1765617068409,-742.57,0.00027945,3]
[398406578,1765617068419,-500.0,0.00027945,3]
[398406579,1765617068428,-1961.04,0.00027945,3]
[398406580,1765617068438,-1040.17,0.00027945,3]
[398406581,1765617068448,-500.0,0.00027945,3]
[398406582,1765617068458,-500.0,0.00027945,3]
[398406583,1765617068468,-1227.64,0.00027945,3]
[398406584,1765617068477,-500.0,0.00027945,3]
[398406585,1765617068487,-500.0,0.00027945,3]
[398406586,1765617068496,-804.14,0.00027945,3]
[398406587,1765617068508,-500.0,0.00027945,3]
[398406588,1765617068518,-1602.27,0.00027945,3]
[398406589,1765617068527,-2358.14,0.00027945,3]
[398406590,1765617068537,-500.0,0.00027945,3]
[398406591,1765617068546,-500.0,0.00027945,3]
[398406592,1765617068556,-500.0,0.00027945,3]
[398406593,1765617068565,-500.0,0.00027945,3]
[398406594,1765617068575,-500.0,0.00027945,3]
[398406595,1765617068585,-500.0,0.00027945,3]
[398406596,1765617068598,-500.0,0.00027945,3]
[398406597,1765617068608,-500.0,0.00027945,3]
[398406598,1765617068617,-500.0,0.00027945,3]
[398406599,1765617068627,-758.05,0.00027945,3]
[398406600,1765617068636,-2188.95,0.00027945,3]
[398406601,1765617068646,-500.0,0.00027945,3]
[398406602,1765617068655,-500.0,0.00027945,3]
[398406603,1765617068666,-500.0,0.00027945,3]
[398406604,1765617068675,-500.0,0.00027945,3]
[398406605,1765617068685,-1467.28,0.00027945,3]
[398406606,1765617068695,-643.24,0.00027945,3]
[398406607,1765617068705,-500.0,0.00027945,3]
[398406608,1765617068715,-1893.58,0.00027945,3]
[398406609,1765617068725,-2044.9,0.00027945,3]
[398406610,1765617068735,-500.0,0.00027945,3]
[398406611,1765617068744,-500.0,0.00027945,3]
[398406612,1765617068755,-376.42846349,0.00027945,3]
[398406613,1765617068764,-500.0,0.00027945,3]
[398406614,1765617068774,-500.0,0.00027945,3]
[398406615,1765617068783,-500.0,0.00027945,3]
[398406616,1765617068792,-882.53,0.00027945,3]
[398406617,1765617068803,-797.56,0.00027945,3]
[398406618,1765617068813,-353.80230145,0.00027945,3]
[398406619,1765617068823,-500.0,0.00027945,3]
[398406620,1765617068833,-2394.02,0.00027945,3]
[398406621,1765617068842,-500.0,0.00027945,3]
[398406622,1765617068852,-500.0,0.00027945,3]
[398406623,1765617068861,-500.0,0.00027945,3]
[398406624,1765617068871,-500.0,0.00027945,3]
[398406625,1765617068880,-2469.26,0.00027945,3]
[398406626,1765617068889,-725.09,0.00027945,3]
[398406627,1765617068899,-2460.35,0.00027945,3]
[398406628,1765617068908,-500.0,0.00027945,3]
[398406629,1765617068921,-500.0,0.00027945,3]
[398406630,1765617068930,-621.99,0.00027945,3]
[398406631,1765617068939,-500.0,0.00027945,3]
[398406632,1765617068948,-500.0,0.00027945,3]
[398406633,1765617068959,-500.0,0.00027945,3]
[398406634,1765617068968,-1840.29,0.00027945,3]
[398406635,1765617068978,-500.0,0.00027945,3]
[398406636,1765617068987,-500.0,0.00027945,3]
[398406637,1765617068997,-502.05639774,0.00027945,3]
[398406638,1765617069007,-2395.32,0.00027945,3]
[398406639,1765617069017,-539.27,0.00027945,3]
[398406640,1765617069026,-1618.61,0.00027945,3]
[398406641,1765617069036,-1165.82,0.00027945,3]
[398406642,1765617069047,-500.0,0.00027945,3]
[398406643,1765617069056,-2371.07,0.00027945,3]
[398406644,1765617069065,-500.0,0.00027945,3]
[398406645,1765617069074,-1656.77,0.00027945,3]
[398406646,1765617069082,-2139.92,0.00027945,3]
[398406647,1765617069091,-500.0,0.00027945,3]
[398406648,1765617069100,-2033.6,0.00027945,3]
[398406649,1765617069109,-500.0,0.00027945,3]
[398406650,1765617069119,-1956.59,0.00027945,3]
[398406651,1765617069129,-500.0,0.00027945,3]
[398406652,1765617069139,-1222.88,0.00027945,3]
[398406653,1765617069148,-2211.14,0.00027945,3]
[398406654,1765617069158,-1292.66,0.00027945,3]
[398406655,1765617069167,-1054.22,0.00027945,3]
[398406656,1765617069177,-500.0,0.00027945,3]
[398406657,1765617069187,-2063.19,0.00027945,3]
[398406658,1765617069197,-500.0,0.00027945,3]
[398406659,1765617069207,-500.0,0.00027945,3]
[398406660,1765617069217,-546.02,0.00027945,3]
[398406661,1765617069226,-500.0,0.00027945,3]
[398406662,1765617069239,-1532.63,0.00027945,3]
[398406663,1765617069249,-2352.93,0.00027945,3]
[398406664,1765617069258,-500.0,0.00027945,3]
[398406665,1765617069267,-500.0,0.00027945,3]
[398406666,1765617069276,-208.45053701,0.00027945,3]
[398406667,1765617069286,-870.12,0.00027945,2]
[398406668,1765617069295,-500.0,0.00027945,3]
[398406669,1765617069305,-500.0,0.00027945,3]
[398406670,1765617069316,-500.0,0.00027945,3]
[398406671,1765617069326,-576.15,0.00027945,3]
[398406672,1765617069335,-500.0,0.00027945,3]
[398406673,1765617069346,-500.0,0.00027945,3]
[398406674,1765617069355,-500.0,0.00027945,3]
[398406675,1765617069365,-500.0,0.00027945,3]
[398406676,1765617069374,-2186.76,0.00027945,3]
[398406677,1765617069383,-500.87393043,0.00027945,3]
[398406678,1765617069393,-421.57385659,0.00027945,3]
[398406679,1765617069402,-500.0,0.00027945,3]
[398406680,1765617069411,-1646.45,0.00027945,3]
[398406681,1765617069421,-500.0,0.00027945,3]
[398406682,1765617069431,-2156.34,0.00027945,3]
[398406683,1765617069440,-1000.0,0.00027945,2]
[398406684,1765617069451,-500.0,0.00027945,3]
[398406685,1765617069460,-500.0,0.00027945,3]
[398406686,1765617069470,-500.0,0.00027945,3]
[398406687,1765617069479,-500.0,0.00027945,3]
[398406688,1765617069489,-500.0,0.00027945,3]
[398406689,1765617069499,-2095.52,0.00027945,3]
[398406690,1765617069509,-500.0,0.00027945,3]
[398406691,1765617069518,-2472.36,0.00027945,3]
[398406692,1765617069528,-504.3,0.00027945,3]
[398406693,1765617069537,-1173.99,0.00027945,3]
[398406694,1765617069547,-1669.5,0.00027945,3]
[398406695,1765617069558,-500.0,0.00027945,3]
[398406696,1765617069568,-500.0,0.00027945,3]
[398406697,1765617069578,-500.0,0.00027945,3]
[398406698,1765617069589,-8313.59,0.00027945,3]
[398406699,1765617069599,-2189.26,0.00027945,3]
[398406700,1765617069608,-500.0,0.00027945,3]
[398406701,1765617069618,-500.0,0.00027945,3]
[398406702,1765617069628,-756.99,0.00027945,3]
[398406703,1765617069639,-500.0,0.00027945,3]
[398406704,1765617069648,-500.0,0.00027945,3]
[398406705,1765617069658,-500.0,0.00027945,3]
[398406706,1765617069668,-341.33,0.00027945,3]
[398406707,1765617069678,-500.0,0.00027945,3]
[398406708,1765617069688,-2196.27,0.00027945,3]
[398406709,1765617069698,-500.0,0.00027945,3]
[398406710,1765617069708,-2077.28,0.00027945,3]
[398406711,1765617069717,-500.0,0.00027945,3]
[398406712,1765617069727,-500.0,0.00027945,3]
[398406713,1765617069737,-500.0,0.00027945,3]
[398406714,1765617069747,-2178.91,0.00027945,3]
[398406715,1765617069757,-500.0,0.00027945,3]
[398406716,1765617069869,-1039.54,0.00027945,3]
[398406717,1765617069879,-500.0,0.00027945,3]
[398406718,1765617069889,-1677.78,0.00027945,3]
[398406719,1765617069899,-500.0,0.00027945,3]
[398406720,1765617069910,-500.0,0.00027945,3]
[398406721,1765617069923,-971.1,0.00027945,3]
[398406722,1765617069933,-500.0,0.00027945,15]
[398406723,1765617069943,-151.47726258,0.00027974,2]
[398406724,1765617069952,-574.12855637,0.00027974,2]
[398406725,1765617069962,-414.8,0.00027974,2]
[398406726,1765617069972,-248.285,0.00027981,18]
[398406727,1765617069982,-12341.64298837,0.00027991,2]
[398406728,1765617069992,-525.4,0.00027991,3]
[398406729,1765617070002,-525.4,0.00027991,3]
[398406730,1765617070016,-525.4,0.00027991,3]
[398406731,1765617070026,-797.03,0.00027991,30]
[398406732,1765617070035,-797.03,0.00027991,31]
[398406733,1765617070044,-797.03,0.00027991,32]
[398406734,1765617070056,-797.03,0.00027991,33]
[398406735,1765617070066,-502.47203858,0.00027991,2]
[398406736,1765617070076,-500.0,0.00027992,3]
[398406737,1765617070086,-500.0,0.00027992,3]
[398406738,1765617070096,-500.0,0.00027992,3]
[398406739,1765617070107,-500.0,0.00027992,3]
[398406740,1765617070116,-500.0,0.00027992,3]
[398406741,1765617070125,-500.0,0.00027992,3]
[398406742,1765617070134,-500.0,0.00027992,3]
[398406743,1765617070144,-527.81515118,0.00027992,3]
[398406744,1765617070153,-500.0,0.00027992,3]
[398406745,1765617070162,-500.0,0.00027992,3]
[398406746,1765617070172,-500.51649567,0.00027992,2]
[398406747,1765617070181,-525.4,0.00027992,3]
[398406748,1765617070191,-525.4,0.00027992,3]
[398406749,1765617070201,-525.4,0.00027992,3]
[398406750,1765617070210,-525.4,0.00027992,3]
[398406751,1765617070219,-525.4,0.00027992,3]
[398406752,1765617070228,-525.4,0.00027992,3]
[398406753,1765617070238,-525.4,0.00027992,3]
[398406754,1765617070247,-525.4,0.00027992,3]
[398406755,1765617070256,-525.4,0.00027992,3]
[398406756,1765617070269,-525.4,0.00027992,3]
[398406757,1765617070278,-525.4,0.00027992,3]
[398406758,1765617070287,-525.4,0.00027992,3]
[398406759,1765617070296,-525.4,0.00027992,3]
[398406760,1765617070305,-525.4,0.00027992,3]
[398406761,1765617070315,-525.4,0.00027992,3]
[398406762,1765617070324,-797.03,0.00027992,34]
[398406763,1765617070334,-797.03,0.00027992,35]
[398406764,1765617070343,-797.03,0.00027992,36]
[398406765,1765617070354,-797.03,0.00027992,37]
[398406766,1765617070365,-797.03,0.00027992,38]
[398406767,1765617070376,-797.03,0.00027992,39]
[398406768,1765617070386,-797.03,0.00027992,40]
[398406769,1765617070395,-797.03,0.00027992,41]
[398406770,1765617070409,-797.03,0.00027992,42]
[398406771,1765617070420,-797.03,0.00027992,43]
[398406772,1765617070429,-797.03,0.00027992,44]
[398406773,1765617070441,-797.03,0.00027992,45]
[398406774,1765617070451,-797.03,0.00027992,46]
[398406775,1765617070461,-797.03,0.00027992,47]
[398406776,1765617070470,-797.03,0.00027992,48]
[398406777,1765617070479,-525.4,0.00027994,3]
[398406778,1765617070489,-525.4,0.00027994,3]
[398406779,1765617070499,-525.4,0.00027994,3]
[398406780,1765617070508,-525.4,0.00027994,3]
[398406781,1765617070517,-525.52830584,0.00027994,3]
[398406782,1765617070529,-797.03,0.00027994,49]
[398406783,1765617070539,-797.03,0.00027994,49]
[398406784,1765617070548,-797.03,0.00027994,49]
[398406785,1765617070558,-797.03,0.00027994,49]
[398406786,1765617070567,-797.235153,0.00027994,49]
[398406787,1765617070577,-1513.07,0.00027995,2]
[398406788,1765617070586,-909.28,0.00027998,3]
[398406789,1765617070595,-150.0,0.00028,120]
[398406790,1765617070604,-500.0,0.00028082,3]
[398406791,1765617070626,-500.0,0.00028219,3]
[398406792,1765617070642,-804.94,0.00028219,3]
[398406793,1765617070660,-500.0,0.00028219,3]
[398406794,1765617070679,-500.0,0.00028219,3]
[398406795,1765617070697,-1145.8,0.00028219,3]
[398406796,1765617070714,-897.33,0.00028219,3]
[398406797,1765617070733,-500.0,0.00028219,3]
[398406798,1765617070748,-169.828461,0.00028219,3]
[398406799,1765617070766,-500.0,0.00028219,3]
[398406800,1765617070785,-500.0,0.00028219,3]
[398406801,1765617070801,-500.0,0.00028219,3]
[398406802,1765617070816,-1068.39,0.00028219,3]
[398406803,1765617070834,-500.0,0.00028219,3]
[398406804,1765617070851,-1993.075405,0.00028219,3]
[398406805,1765617070865,-500.0,0.00028219,3]
[398406806,1765617070880,-500.0,0.00028219,3]
[398406807,1765617070895,-500.0,0.00028219,3]
[398406808,1765617070910,-500.0,0.00028219,3]
[398406809,1765617070928,-645.92,0.00028219,3]
[398406810,1765617070944,-500.0,0.00028219,3]
[398406811,1765617070960,-553.99,0.00028219,3]
[398406812,1765617070975,-500.0,0.00028219,3]
[398406813,1765617070990,-500.0,0.00028219,3]
[398406814,1765617071005,-500.0,0.00028219,3]
[398406815,1765617071021,-500.0,0.00028219,3]
[398406816,1765617071037,-500.0,0.00028219,3]
[398406817,1765617071054,-500.0,0.00028219,3]
[398406818,1765617071069,-500.0,0.00028219,3]
[398406819,1765617071084,-500.0,0.00028219,3]
[398406820,1765617071101,-660.68,0.00028219,3]
[398406821,1765617071118,-856.0,0.00028219,3]
[398406822,1765617071134,-500.0,0.00028219,3]
[398406823,1765617071151,-500.0,0.00028219,3]
[398406824,1765617071166,-790.78,0.00028219,3]
[398406825,1765617071181,-500.0,0.00028219,3]
[398406826,1765617071196,-500.0,0.00028219,3]
[398406827,1765617071212,-500.0,0.00028219,3]
[398406828,1765617071228,-470.50684435,0.00028219,3]
[398406829,1765617071243,-500.0,0.00028219,3]
[398406830,1765617071260,-512.89,0.00028219,3]
[398406831,1765617071276,-500.0,0.00028219,3]
[398406832,1765617071291,-500.0,0.00028219,3]
[398406833,1765617071307,-500.0,0.00028219,3]
[398406834,1765617071324,-500.0,0.00028219,3]
[398406835,1765617071340,-522.82236415,0.00028219,3]
[398406836,1765617071354,-500.0,0.00028219,3]
[398406837,1765617071368,-500.0,0.00028219,3]
[398406838,1765617071384,-500.0,0.00028219,3]
[398406839,1765617071400,-500.0,0.00028219,3]
[398406840,1765617071416,-500.0,0.00028219,3]
[398406841,1765617071432,-639.5,0.00028219,3]
[398406842,1765617071449,-500.0,0.00028219,3]
[398406843,1765617071466,-500.0,0.00028219,3]
[398406844,1765617071481,-3077.68,0.00028219,2]